fUST/lending_fUST_20250523
["ID","MTS","AMOUNT","RATE_DAILY","PERIOD"]
[362063868,1747963834943,-430.0,0.00017822,2]
[362063869,1747963834953,-450.0,0.00017822,2]
[362063870,1747963834963,-430.0,0.00017822,2]
[362063871,1747963834975,-780.26,0.0001799,3]
[362063872,1747963834985,-390.13,0.0001799,3]
[362063873,1747963834995,-195.07,0.0001799,3]
[362063874,1747963835004,-585.21,0.0001799,3]
[362063875,1747963835014,-7013.0,0.00018,2]
[362063876,1747963835023,-5000.0,0.00018,2]
[362063877,1747963835032,-1560.53,0.00018085,3]
[362063878,1747963835042,-430.0,0.00018094,2]
[362063879,1747963835052,-239.63,0.00018094,2]
[362063880,1747963835062,-443.61,0.00018094,2]
[362063881,1747963835072,-430.0,0.00018094,2]
[362063882,1747963835081,-392.37217455,0.00018094,2]
[362063883,1747963835091,-550.41,0.00018094,2]
[362063884,1747963835100,-430.0,0.00018094,2]
[362063885,1747963835110,-430.0,0.00018094,2]
[362063886,1747963835120,-430.0,0.00018095,2]
[362063887,1747963835129,-737.47,0.00018095,2]
[362063888,1747963835138,-430.0,0.00018095,2]
[362063889,1747963835148,-430.0,0.00018095,2]
[362063890,1747963835158,-430.0,0.00018095,2]
[362063891,1747963835168,-430.0,0.00018095,2]
[362063892,1747963835178,-794.36,0.00018095,2]
[362063893,1747963835188,-430.0,0.00018095,2]
[362063894,1747963835198,-774.25,0.00018095,2]
[362063895,1747963835207,-446.56505707,0.00018095,2]
[362063896,1747963835217,-430.0,0.00018096,2]
[362063897,1747963835228,-500.0,0.00018096,2]
[362063898,1747963835237,-430.0,0.00018096,2]
[362063899,1747963835247,-430.0,0.00018096,2]
[362063900,1747963835256,-500.0,0.00018185,2]
[362063901,1747963835266,-500.0,0.00018185,2]
[362063902,1747963835276,-273.0233187,0.00018185,2]
[362063903,1747963835285,-500.0,0.00018185,2]
[362063904,1747963835295,-500.0,0.00018185,2]
[362063905,1747963835304,-430.0,0.00018368,2]
[362063906,1747963835318,-443.61,0.00018368,2]
[362063907,1747963835328,-430.0,0.00018368,2]
[362063908,1747963835339,-550.41,0.00018368,2]
[362063909,1747963835349,-430.0,0.00018368,2]
[362063910,1747963835359,-430.0,0.00018368,2]
[362063911,1747963835370,-430.0,0.00018369,2]
[362063912,1747963835380,-737.47,0.00018369,2]
[362063913,1747963835391,-430.0,0.00018369,2]
[362063914,1747963835402,-430.0,0.00018369,2]
[362063915,1747963835411,-430.0,0.00018369,2]
[362063916,1747963835421,-430.0,0.00018369,2]
[362063917,1747963835431,-794.36,0.00018369,2]
[362063918,1747963835442,-430.0,0.00018369,2]
[362063919,1747963835452,-774.25,0.00018369,2]
[362063920,1747963835463,-430.0,0.0001837,2]
[362063921,1747963835473,-588.64,0.0001837,2]
[362063922,1747963835483,-207.52280627,0.0001837,2]
[362063923,1747963835493,-500.0,0.00018446,2]
[362063924,1747963835504,-503.2463789,0.00018479,2]
[362063925,1747963835513,-500.0,0.00018491,2]
[362063926,1747963835523,-500.0,0.00018623,2]
[362063927,1747963835533,-500.0,0.00018623,2]
[362063928,1747963835543,-500.0,0.00018628,2]
[362063929,1747963835553,-443.61,0.00018642,2]
[362063930,1747963835568,-430.0,0.00018642,2]
[362063931,1747963835578,-550.41,0.00018642,2]
[362063932,1747963835588,-430.0,0.00018642,2]
[362063933,1747963835598,-430.0,0.00018642,2]
[362063934,1747963835609,-430.0,0.00018643,2]
[362063935,1747963835618,-737.47,0.00018643,2]
[362063936,1747963835628,-430.0,0.00018643,2]
[362063937,1747963835638,-304.38576811,0.00018643,2]
[362063938,1747963835652,-430.0,0.00018643,2]
[362063939,1747963835664,-162.79657829,0.00018643,2]
[362063940,1747963835676,-794.36,0.00018643,2]
[362063941,1747963835687,-430.0,0.00018643,2]
[362063942,1747963835700,-774.25,0.00018643,2]
[362063943,1747963835710,-430.0,0.00018644,2]
[362063944,1747963835719,-500.0,0.00018687,2]
[362063945,1747963835729,-500.0,0.00018687,2]
[362063946,1747963835740,-209.80210455,0.00018687,2]
[362063947,1747963835749,-500.0,0.00018687,2]
[362063948,1747963835758,-500.0,0.00018687,2]
[362063949,1747963835768,-500.0,0.00018687,2]
[362063950,1747963835777,-586.55510961,0.00018687,2]
[362063951,1747963835786,-500.0,0.00018688,2]
[362063952,1747963835796,-1000.0,0.00018733,2]
[362063953,1747963835805,-1000.0,0.00018733,2]
[362063954,1747963835817,-1000.0,0.00018733,2]
[362063955,1747963835829,-500.0,0.00018788,2]
[362063956,1747963835848,-500.0,0.00018788,2]
[362063957,1747963835858,-203.75215319,0.00018814,2]
[362063958,1747963835867,-388.77837944,0.000189,2]
[362063959,1747963835877,-443.61,0.00018916,2]
[362063960,1747963835887,-430.0,0.00018916,2]
[362063961,1747963835897,-550.41,0.00018916,2]
[362063962,1747963835906,-430.0,0.00018916,2]
[362063963,1747963835915,-430.0,0.00018916,2]
[362063964,1747963835924,-430.0,0.00018917,2]
[362063965,1747963835934,-737.47,0.00018917,2]
[362063966,1747963835943,-430.0,0.00018917,2]
[362063967,1747963835953,-430.0,0.00018917,2]
[362063968,1747963835962,-794.36,0.00018917,2]
[362063969,1747963835971,-430.0,0.00018917,2]
[362063970,1747963835981,-774.25,0.00018917,2]
[362063971,1747963835990,-297.32,0.00018918,2]
[362063972,1747963836000,-381.98067145,0.00018972,2]
[362063973,1747963836009,-1000.0,0.00019039,2]
[362063974,1747963836018,-151.0,0.00019073,2]
[362063975,1747963836028,-420.0,0.00019152,2]
[362063976,1747963836037,-420.0,0.00019153,2]
[362063977,1747963836047,-1000.0,0.00019171,2]
[362063978,1747963836056,-1000.0,0.00019176,2]
[362063979,1747963836069,-151.0,0.00019178,2]
[362063980,1747963836079,-500.0,0.00019178,2]
[362063981,1747963836088,-500.0,0.00019178,2]
[362063982,1747963836097,-500.0,0.00019178,2]
[362063983,1747963836107,-500.0,0.00019178,2]
[362063984,1747963836117,-500.0,0.00019178,2]
[362063985,1747963836126,-500.0,0.00019178,2]
[362063986,1747963836135,-500.0,0.00019178,2]
[362063987,1747963836144,-500.0,0.00019178,2]
[362063988,1747963836154,-500.0,0.00019178,2]
[362063989,1747963836163,-500.0,0.00019178,2]
[362063990,1747963836173,-646.61734609,0.00019178,2]
[362063991,1747963836182,-500.0,0.00019178,2]
[362063992,1747963836193,-500.0,0.00019178,2]
[362063993,1747963836202,-500.0,0.00019178,2]
[362063994,1747963836212,-500.0,0.00019178,2]
[362063995,1747963836223,-500.0,0.00019178,2]
[362063996,1747963836232,-500.0,0.00019178,2]
[362063997,1747963836242,-500.0,0.00019178,2]
[362063998,1747963836251,-500.0,0.00019178,2]
[362063999,1747963836261,-193.846831,0.00019178,2]
[362064000,1747963836270,-443.61,0.0001919,2]
[362064001,1747963836279,-430.0,0.0001919,2]
[362064002,1747963836288,-550.41,0.0001919,2]
[362064003,1747963836297,-430.0,0.0001919,2]
[362064004,1747963836307,-430.0,0.0001919,2]
[362064005,1747963836317,-430.0,0.00019191,2]
[362064006,1747963836326,-737.47,0.00019191,2]
[362064007,1747963836336,-430.0,0.00019191,2]
[362064008,1747963836345,-430.0,0.00019191,2]
[362064009,1747963836355,-794.36,0.00019191,2]
[362064010,1747963836363,-430.0,0.00019191,2]
[362064011,1747963836374,-774.25,0.00019191,2]
[362064012,1747963836383,-1000.0,0.00019236,2]
[362064013,1747963836392,-1000.0,0.00019281,2]
[362064014,1747963836402,-500.0,0.00019281,2]
[362064015,1747963836411,-1000.0,0.00019281,2]
[362064016,1747963836421,-207.4,0.00019308,2]
[362064017,1747963836430,-151.26995566,0.00019308,2]
[362064018,1747963836439,-151.0,0.00019308,2]
[362064019,1747963836449,-151.0,0.00019308,2]
[362064020,1747963836459,-151.0,0.00019308,2]
[362064021,1747963836469,-151.0,0.00019308,2]
[362064022,1747963836479,-182.01037133,0.00019308,2]
[362064023,1747963836488,-151.0,0.00019308,2]
[362064024,1747963836498,-1000.0,0.00019336,2]
[362064025,1747963836507,-855.94181766,0.00019336,2]
[362064026,1747963836516,-1560.52,0.0001936,3]
[362064027,1747963836526,-780.26,0.0001936,3]
[362064028,1747963836535,-390.14,0.0001936,3]
[362064029,1747963836544,-3121.06,0.00019455,3]
[362064030,1747963836554,-443.61,0.00019464,2]
[362064031,1747963836566,-430.0,0.00019464,2]
[362064032,1747963836575,-550.41,0.00019464,2]
[362064033,1747963836585,-430.0,0.00019464,2]
[362064034,1747963836595,-430.0,0.00019464,2]
[362064035,1747963836604,-430.0,0.00019465,2]
[362064036,1747963836613,-737.47,0.00019465,2]
[362064037,1747963836622,-335.04,0.00019465,2]
[362064038,1747963836633,-430.0,0.00019465,2]
[362064039,1747963836643,-794.36,0.00019465,2]
[362064040,1747963836653,-430.0,0.00019465,2]
[362064041,1747963836664,-774.25,0.00019465,2]
[362064042,1747963836674,-151.0,0.00019568,2]
[362064043,1747963836684,-1500.0,0.00019587,2]
[362064044,1747963836695,-160.0,0.00019599,2]
[362064045,1747963836704,-199.22,0.00019676,3]
[362064046,1747963836713,-1500.0,0.00019719,2]
[362064047,1747963836722,-1500.0,0.00019724,2]
[362064048,1747963836732,-443.61,0.00019738,2]
[362064049,1747963836742,-430.0,0.00019738,2]
[362064050,1747963836751,-550.41,0.00019738,2]
[362064051,1747963836761,-430.0,0.00019738,2]
[362064052,1747963836770,-430.0,0.00019738,2]
[362064053,1747963836780,-430.0,0.00019739,2]
[362064054,1747963836788,-737.47,0.00019739,2]
[362064055,1747963836798,-430.0,0.00019739,2]
[362064056,1747963836807,-794.36,0.00019739,2]
[362064057,1747963836817,-430.0,0.00019739,2]
[362064058,1747963836827,-774.25,0.00019739,2]
[362064059,1747963836836,-1000.0,0.00019784,2]
[362064060,1747963836845,-151.0,0.00019842,2]
[362064061,1747963836855,-1500.02275469,0.00019884,2]
[362064062,1747963836864,-349.69907213,0.00019912,2]
[362064063,1747963836873,-205.94549968,0.0001999,2]
[362064064,1747963836890,-6333.67103448,0.0001999,2]
[362064065,1747963836901,-1953.592566,0.0001999,2]
[362064066,1747963836912,-325.05563696,0.0001999,2]
[362064067,1747963836923,-450.41871175,0.0001999,2]
[362064068,1747963836957,-509.26648375,0.0001999,2]
[362064069,1747963836968,-309.29720225,0.0001999,2]
[362064073,1747963838472,-175.92218939,0.00017547,2]
[362064074,1747963838482,-4019.13307526,0.0001782,2]
[362064075,1747963838492,-500.0,0.00018687,2]
[362064076,1747963838502,-500.0,0.00018687,2]
[362064077,1747963838512,-11084.64942924,0.0001999,2]
[362064078,1747963838521,-151.0,0.00019998,2]
[362064079,1747963838531,-160.37391087,0.00019999,2]
[362064080,1747963838540,-109356.65179023,0.0002,2]
[362064081,1747963838565,-52389.69607399,0.0002,2]
[362064086,1747963840893,-430.0,0.00017546,2]
[362064087,1747963840903,-430.0,0.0001782,2]
[362064088,1747963840913,-430.0,0.00018094,2]
[362064089,1747963840923,-64649.89057922,0.0002,2]
[362064140,1747963843761,-430.0,0.00018368,2]
[362064143,1747963843771,-430.0,0.00018642,2]
[362064145,1747963843781,-141.846831,0.00018916,2]
[362064199,1747964175423,-4937.0,0.00017196,2]
[362064200,1747964541678,-243.36245644,0.00016638,2]
[362064201,1747964543190,-200.0,0.00016638,2]
[362064202,1747964545876,-319.60498314,0.00016638,2]
[362064209,1747964757028,260.549692,0.00013699,2]
[362064291,1747965032713,-5000.0,0.00016272,2]
[362064294,1747965032723,-2405.3853835,0.00016436,2]
[362064298,1747965032733,-638.613806,0.00016806,2]
[362064302,1747965032743,-300.0,0.00017398,2]
[362064324,1747965032954,-300.0,0.00017398,2]
[362064326,1747965032966,-394.53785265,0.00017399,2]
[362064329,1747965032976,-175.13771167,0.000174,2]
[362064331,1747965032985,-441.8864216,0.000174,2]
[362064333,1747965032995,-461.91778009,0.000174,2]
[362064335,1747965033005,-458.64998172,0.000174,2]
[362064337,1747965033015,-430.0,0.000174,2]
[362064339,1747965033025,-467.08467851,0.000174,2]
[362064341,1747965033034,-457.51912785,0.000174,2]
[362064343,1747965033044,-232.5641576,0.000174,2]
[362064345,1747965033055,-316.32705389,0.000174,2]
[362064347,1747965033065,-356.85291492,0.000174,2]
[362064349,1747965033075,-507.33298345,0.000174,2]
[362064351,1747965033085,-430.0,0.000174,2]
[362064353,1747965033095,-466.62,0.000174,2]
[362064354,1747965033105,-233.46139744,0.000174,2]
[362064357,1747965033118,-264.99860256,0.000174,2]
[362064359,1747965033128,-482.14000381,0.000174,2]
[362064361,1747965033141,-275.48092013,0.000174,2]
[362064363,1747965033153,-199.18506558,0.000174,2]
[362064365,1747965033163,-185.63071316,0.000174,2]
[362064513,1747965038776,-300.0,0.00017399,2]
[362064514,1747965038788,-302.68062539,0.000174,2]
[362064516,1747965038798,-514.82043718,0.000174,2]
[362064518,1747965038808,-430.0,0.000174,2]
[362064519,1747965038818,-484.34726635,0.000174,2]
[362064520,1747965038828,-435.58446897,0.000174,2]
[362064521,1747965038837,-467.02233796,0.000174,2]
[362064522,1747965038848,-459.94351753,0.000174,2]
[362064523,1747965038859,-453.85433022,0.000174,2]
[362064524,1747965038869,-430.0,0.000174,2]
[362064525,1747965038880,-430.0,0.000174,2]
[362064526,1747965038890,-460.25248215,0.000174,2]
[362064527,1747965038900,-458.75499678,0.000174,2]
[362064528,1747965038909,-458.3647759,0.000174,2]
[362064529,1747965038919,-457.20953675,0.000174,2]
[362064530,1747965038929,-455.20477573,0.000174,2]
[362064531,1747965038939,-430.0,0.000174,2]
[362064532,1747965038949,-430.0,0.000174,2]
[362064533,1747965038959,-430.0,0.000174,2]
[362064534,1747965038969,-159.81269174,0.000174,2]
[362064564,1747965040941,-306.16720741,0.000174,2]
[362064565,1747965040952,-327.83279259,0.000174,2]
[362064566,1747965040964,-102.16720741,0.000174,2]
[362064567,1747965040974,-456.39457995,0.000174,2]
[362064568,1747965040983,-408.69759149,0.000174,2]
[362064614,1747965046730,-163.70820913,0.000174,2]
[362064615,1747965046740,-248.17476009,0.000174,2]
[362064617,1747965347110,-300.0,0.00016175,2]
[362064618,1747965347134,-24900.0,0.00016176,2]
[362064619,1747965347157,-273.94338583,0.0001634,2]
[362064620,1747965347179,-2824.2952666,0.000164,2]
[362064621,1747965347202,-300.0,0.00016504,2]
[362064622,1747965347224,-1138.76134757,0.00016504,2]
[362064623,1747965419353,-261.50763403,0.00016405,2]
[362064624,1747965419374,-300.0,0.00016503,2]
[362064625,1747965419397,-500.0,0.00016503,2]
[362064626,1747965419421,-500.0,0.00016503,2]
[362064627,1747965419445,-500.0,0.00016503,2]
[362064628,1747965419468,-354.77626772,0.00016503,2]
[362064629,1747965419491,-500.0,0.00016503,2]
[362064630,1747965419514,-500.0,0.00016503,2]
[362064631,1747965419536,-500.0,0.00016503,2]
[362064632,1747965419558,-206.71609825,0.00016503,2]
[362064633,1747965472301,-185.17740586,0.00016338,2]
[362064634,1747965475756,-114.82259414,0.00016338,2]
[362064635,1747965475780,-65.72783016,0.00016403,2]
[362064636,1747965477995,-180.39501686,0.00016403,2]
[362064637,1747965486683,-15.38478701,0.00016403,2]
[362064638,1747965486707,-300.0,0.00016503,2]
[362064639,1747965486729,-500.0,0.00016503,2]
[362064640,1747965486752,-500.0,0.00016503,2]
[362064641,1747965486772,-374.49646234,0.00016503,2]
[362064642,1747965486794,-217.62625734,0.00016503,2]
[362064643,1747965486817,-61.23865243,0.00016504,2]
[362064644,1747965486839,-9758.2660423,0.00016504,3]
[362064645,1747965486865,-23183.98779858,0.00016504,2]
[362064646,1747965552158,-2845.8467562,0.00015954,2]
[362064647,1747965552181,-546.12284702,0.00016239,2]
[362064648,1747965552204,-300.0,0.00016503,2]
[362064649,1747965552225,-4879.13302115,0.00016504,3]
[362064650,1747965552249,-42392.89737563,0.00016504,2]
[362064651,1747965602947,390.0,0.0002,120]
[362064652,1747965620949,-5000.0,0.00016339,2]
[362064653,1747965620972,-300.0,0.00016504,2]
[362064654,1747965620996,-480.0,0.00016504,2]
[362064655,1747965621018,-11.0,0.00016505,2]
[362064656,1747965690498,-5000.0,0.0001634,2]
[362064657,1747965690523,-300.0,0.00016504,2]
[362064658,1747965690545,-300.0,0.00016504,2]
[362064659,1747965690567,-7843.0,0.00016505,2]
[362064660,1747965756497,-511.32094724,0.00015954,2]
[362064661,1747965756520,-4531.67905276,0.0001634,2]
[362064662,1747965860986,287.510423,0.00013699,2]
[362064670,1747965950590,-4685.0,0.00016177,2]
[362064671,1747966015416,-300.0,0.00016177,2]
[362064705,1747966231848,-5000.0,0.00016015,2]
[362064706,1747966231858,-55.96887672,0.00016097,2]
[362064718,1747966237641,-418.03112328,0.00016097,2]
[362064719,1747966237652,-756.9216978,0.00016098,2]
[362064720,1747966237694,-2876.8787265,0.00016098,2]
[362064721,1747966237705,-200.57371472,0.0001624,2]
[362064722,1747966237715,-160.0,0.00016496,2]
[362064723,1747966237725,-300.0,0.00016504,2]
[362064724,1747966237736,-1994.9537271,0.00016505,2]
[362064725,1747966237746,-564.898333,0.00016511,2]
[362064726,1747966237756,-500.0,0.00016679,2]
[362064727,1747966237767,-584.48667625,0.00017087,2]
[362064728,1747966237777,-300.0,0.00017389,2]
[362064729,1747966237788,-1099.17,0.0001739,3]
[362064730,1747966237798,-549.58,0.0001739,3]
[362064732,1747966237808,-274.79,0.0001739,3]
[362064733,1747966237819,-824.42,0.0001739,3]
[362064734,1747966237831,-500.0,0.00017397,2]
[362064735,1747966237843,-500.0,0.00017397,2]
[362064736,1747966237852,-324.83129173,0.00017397,2]
[362064737,1747966237862,-162.10536619,0.00017397,2]
[362064738,1747966237872,-500.0,0.00017397,2]
[362064739,1747966237883,-500.0,0.00017397,2]
[362064740,1747966237893,-500.0,0.00017397,2]
[362064741,1747966237902,-500.0,0.00017397,2]
[362064742,1747966237912,-500.0,0.00017397,2]
[362064743,1747966237922,-392.86328296,0.00017397,2]
[362064744,1747966237932,-500.0,0.00017397,2]
[362064745,1747966237942,-500.0,0.00017397,2]
[362064746,1747966237952,-500.0,0.00017397,2]
[362064747,1747966237961,-500.0,0.00017397,2]
[362064748,1747966237971,-500.0,0.00017397,2]
[362064749,1747966237982,-500.0,0.00017397,2]
[362064750,1747966237991,-500.0,0.00017397,2]
[362064751,1747966238001,-393.80989358,0.00017397,2]
[362064752,1747966238011,-500.0,0.00017397,2]
[362064753,1747966238021,-500.0,0.00017397,2]
[362064754,1747966238031,-500.0,0.00017397,2]
[362064755,1747966238041,-170.83802287,0.00017397,2]
[362064756,1747966238051,-500.0,0.00017397,2]
[362064757,1747966238062,-500.0,0.00017397,2]
[362064758,1747966238073,-500.0,0.00017397,2]
[362064759,1747966238083,-358.41977993,0.00017397,2]
[362064760,1747966238093,-500.0,0.00017397,2]
[362064761,1747966238103,-500.0,0.00017397,2]
[362064762,1747966238112,-500.0,0.00017397,2]
[362064763,1747966238123,-500.0,0.00017397,2]
[362064764,1747966238134,-500.0,0.00017397,2]
[362064765,1747966238144,-500.0,0.00017397,2]
[362064766,1747966238154,-500.0,0.00017397,2]
[362064767,1747966238165,-500.0,0.00017397,2]
[362064768,1747966238175,-500.0,0.00017397,2]
[362064769,1747966238185,-500.0,0.00017397,2]
[362064770,1747966238195,-201.60782129,0.00017397,2]
[362064771,1747966238206,-500.0,0.00017397,2]
[362064772,1747966238216,-500.0,0.00017397,2]
[362064773,1747966238226,-500.0,0.00017397,2]
[362064774,1747966238236,-500.0,0.00017397,2]
[362064775,1747966238246,-500.0,0.00017397,2]
[362064776,1747966238256,-500.0,0.00017397,2]
[362064777,1747966238267,-500.0,0.00017397,2]
[362064778,1747966238277,-500.0,0.00017397,2]
[362064779,1747966238287,-500.0,0.00017397,2]
[362064780,1747966238296,-500.0,0.00017397,2]
[362064781,1747966238306,-500.0,0.00017397,2]
[362064782,1747966238315,-500.0,0.00017397,2]
[362064783,1747966238325,-399.88265152,0.00017399,2]
[362064784,1747966238335,-430.0,0.00017399,2]
[362064785,1747966238345,-439.52875474,0.00017399,2]
[362064786,1747966238355,-430.0,0.00017399,2]
[362064787,1747966238365,-430.0,0.00017399,2]
[362064788,1747966238375,-472.10452465,0.00017399,2]
[362064789,1747966238386,-430.0,0.00017399,2]
[362064790,1747966238396,-445.71592377,0.00017399,2]
[362064791,1747966238406,-443.30218969,0.00017399,2]
[362064792,1747966238416,-430.0,0.00017399,2]
[362064793,1747966238427,-430.0,0.00017399,2]
[362064794,1747966238438,-348.51129988,0.00017399,2]
[362064795,1747966238447,-442.54151808,0.00017399,2]
[362064796,1747966238457,-440.97854868,0.00017399,2]
[362064797,1747966238468,-430.0,0.00017399,2]
[362064798,1747966238478,-430.0,0.00017399,2]
[362064799,1747966238489,-430.0,0.00017399,2]
[362064800,1747966238499,-430.0,0.00017399,2]
[362064801,1747966238509,-465.43150531,0.00017399,2]
[362064802,1747966238521,-439.8107558,0.00017399,2]
[362064803,1747966238531,-430.0,0.00017399,2]
[362064804,1747966238540,-442.68339239,0.00017399,2]
[362064805,1747966238550,-438.70368208,0.00017399,2]
[362064806,1747966238560,-430.0,0.00017399,2]
[362064807,1747966238570,-430.0,0.00017399,2]
[362064808,1747966238580,-408.65311017,0.00017399,2]
[362064809,1747966238590,-430.0,0.00017399,2]
[362064810,1747966238602,-443.5571818,0.00017399,2]
[362064811,1747966238612,-430.0,0.00017399,2]
[362064812,1747966238623,-442.82451361,0.00017399,2]
[362064813,1747966238633,-430.0,0.00017399,2]
[362064814,1747966238643,-430.0,0.00017399,2]
[362064815,1747966238653,-430.0,0.00017399,2]
[362064816,1747966238663,-348.63535569,0.00017399,2]
[362064817,1747966238673,-430.0,0.00017399,2]
[362064818,1747966238683,-430.0,0.00017399,2]
[362064819,1747966238692,-173.58219566,0.00017399,2]
[362064820,1747966238703,-430.0,0.00017399,2]
[362064821,1747966238714,-430.0,0.00017399,2]
[362064822,1747966238724,-430.0,0.00017399,2]
[362064823,1747966238733,-441.42534179,0.00017399,2]
[362064824,1747966238743,-430.0,0.00017399,2]
[362064825,1747966238753,-430.16432355,0.00017399,2]
[362064826,1747966238765,-430.0,0.00017399,2]
[362064827,1747966238775,-430.0,0.00017399,2]
[362064828,1747966238785,-436.0997187,0.00017399,2]
[362064829,1747966238796,-430.0,0.00017399,2]
[362064830,1747966238805,-430.0,0.00017399,2]
[362064831,1747966238815,-430.0,0.00017399,2]
[362064832,1747966238825,-437.22322138,0.00017399,2]
[362064833,1747966238835,-430.0,0.00017399,2]
[362064834,1747966238845,-460.81264542,0.00017399,2]
[362064835,1747966238855,-431.68283633,0.00017399,2]
[362064836,1747966238866,-430.0,0.00017399,2]
[362064837,1747966238877,-430.0,0.00017399,2]
[362064838,1747966238895,-436.53903306,0.00017399,2]
[362064839,1747966238911,-438.47141726,0.00017399,2]
[362064840,1747966238927,-430.0,0.00017399,2]
[362064841,1747966238941,-430.0,0.00017399,2]
[362064842,1747966238955,-458.13971711,0.00017399,2]
[362064843,1747966238967,-430.0,0.00017399,2]
[362064844,1747966238979,-430.0,0.00017399,2]
[362064845,1747966238994,-432.06876249,0.00017399,2]
[362064846,1747966239008,-430.0,0.00017399,2]
[362064847,1747966239020,-430.0,0.00017399,2]
[362064848,1747966239034,-431.22081064,0.00017399,2]
[362064849,1747966239046,-430.0,0.00017399,2]
[362064850,1747966239060,-430.0,0.00017399,2]
[362064851,1747966239073,-430.0,0.00017399,2]
[362064852,1747966239087,-432.6000941,0.00017399,2]
[362064853,1747966239101,-430.0,0.00017399,2]
[362064854,1747966239113,-216.43514791,0.00017399,2]
[362064855,1747966239130,-430.0,0.00017399,2]
[362064856,1747966239143,-433.91206048,0.00017399,2]
[362064857,1747966239155,-433.53277604,0.00017399,2]
[362064858,1747966239169,-402.26931314,0.00017399,2]
[362064859,1747966239184,-426.97712672,0.00017399,2]
[362064860,1747966239197,-430.0,0.00017399,2]
[362064861,1747966239209,-430.0,0.00017399,2]
[362064862,1747966239229,-430.0,0.00017399,2]
[362064863,1747966239243,-468.46180767,0.00017399,2]
[362064864,1747966239257,-450.49114789,0.00017399,2]
[362064865,1747966239271,-430.0,0.00017399,2]
[362064866,1747966239283,-435.2516082,0.00017399,2]
[362064867,1747966239295,-435.21208988,0.00017399,2]
[362064868,1747966239308,-436.94865884,0.00017399,2]
[362064869,1747966239321,-490.59480436,0.00017399,2]
[362064870,1747966239336,-430.0,0.00017399,2]
[362064871,1747966239351,-434.73554864,0.00017399,2]
[362064872,1747966239366,-302.07009907,0.00017399,2]
[362064873,1747966239380,-456.96871785,0.00017399,2]
[362064874,1747966239392,-402.98358565,0.00017399,2]
[362064875,1747966239407,-434.18607446,0.00017399,2]
[362064876,1747966239420,-403.40081289,0.00017399,2]
[362064877,1747966239435,-374.2693132,0.00017399,2]
[362064878,1747966239448,-430.0,0.00017399,2]
[362064879,1747966239461,-430.0,0.00017399,2]
[362064880,1747966239471,-313.61493662,0.00017399,2]
[362064881,1747966239482,-430.0,0.00017399,2]
[362064882,1747966239493,-430.0,0.00017399,2]
[362064883,1747966239504,-437.06822049,0.00017399,2]
[362064884,1747966239519,-430.0,0.00017399,2]
[362064886,1747966239533,-430.0,0.00017399,2]
[362064889,1747966239546,-435.45420519,0.00017399,2]
[362064891,1747966239560,-433.59,0.00017399,2]
[362064893,1747966239570,-430.0,0.00017399,2]
[362064895,1747966239580,-431.34354376,0.00017399,2]
[362064897,1747966239594,-436.3411921,0.00017399,2]
[362064899,1747966239606,-434.02501559,0.00017399,2]
[362064900,1747966239619,-437.03725396,0.00017399,2]
[362064901,1747966239631,-430.0,0.00017399,2]